bitfinex/quotes_ETHUSD_20250411
["timestamp","ask_amount","ask_price","bid_price","bid_amount"]
[1744364972765,7.17287,1561.0,1560.6,12.81539]
[1744364973068,7.17287,1561.0,1560.5,13.62168]
[1744364973069,6.40672,1560.9,1560.5,13.62168]
[1744364973366,0.06388428,1560.8,1560.6,12.81527]
[1744364973665,0.06388428,1560.8,1560.6,6.40763]
[1744364973881,0.06388428,1560.8,1560.3,13.83857]
[1744364973882,6.40781,1560.6,1560.3,13.83857]
[1744364974175,6.47169428,1560.6,1560.3,6.634]
[1744364974874,6.40832,1560.5,1560.3,6.634]
[1744364975033,12.87984428,1560.6,1560.3,6.634]
[1744364975233,1.28798443,1560.5,1560.3,6.634]
[1744364975434,1.28798443,1560.5,1560.3,13.04299]
[1744364975648,6.47187428,1560.6,1560.2,12.81855]
[1744364975848,6.47187428,1560.6,1560.3,6.40899]
[1744364976036,0.06388428,1560.6,1560.3,6.4089]
[1744364976459,0.06388428,1560.6,1560.3,12.8178]
[1744364976758,6.47172428,1560.6,1560.3,6.40899]
[1744364976958,0.64717243,1560.5,1560.3,6.409]
[1744364979890,7.05558243,1560.5,1560.1,7.26465]
[1744364980066,0.06388428,1560.4,1560.1,13.67437]
[1744364980401,6.40841,1560.5,1560.2,6.40938]
[1744364980718,0.06388428,1560.4,1560.2,6.40938]
[1744364981395,6.47173428,1560.6,1560.1,4.49062382]
[1744364981599,7.83684671,1560.6,1560.1,4.49062382]
[1744364981901,6.40834,1560.5,1560.2,6.40943]
[1744364982059,0.06388428,1560.4,1560.2,6.40943]
[1744364982258,0.06388428,1560.5,1560.2,6.40931]
[1744364982472,0.06388428,1560.5,1560.3,6.40886]
[1744364982696,1.48836695,1560.5,1560.3,6.40886]
[1744364982891,1.48836695,1560.5,1560.2,6.40933]
[1744364983078,0.06388428,1560.5,1560.2,12.81866]
[1744364983662,6.47210428,1560.5,1560.2,6.40933]
[1744364983861,6.47210428,1560.5,1560.2,12.81861]
[1744364985093,0.06388428,1560.5,1560.3,6.40895]
[1744364985307,6.47209428,1560.5,1560.2,12.81859]
[1744364985470,1.35187871,1560.5,1560.2,12.81859]
[1744364986489,1.35187871,1560.5,1560.3,6.40897]
[1744364986663,1.35187871,1560.5,1560.3,12.81794]
[1744364986865,0.06388428,1560.6,1560.4,6.40861]
[1744364987194,6.40831,1560.5,1560.2,6.4093]
[1744364987361,6.40831,1560.5,1560.2,12.8186]
[1744364987562,6.47179428,1560.6,1560.1,4.49062382]
[1744364987771,6.47179428,1560.6,1560.3,12.81771]
[1744364987976,0.64717943,1560.5,1560.3,6.40884]
[1744364988593,0.71106371,1560.5,1560.3,6.40884]
[1744364989515,13.52772371,1560.5,1560.2,6.40932]
[1744364989703,13.46384943,1560.5,1560.2,6.40932]
[1744364990002,13.57505,1560.4,1560.1,6.45973]
[1744364990301,1.357505,1560.3,1560.1,6.45973]
[1744364990505,7.16619,1560.4,1560.1,10.09544382]
[1744364990506,0.7574,1560.4,1560.1,10.09544382]
[1744364990709,0.82128428,1560.4,1560.2,6.40942]
[1744364991438,7.23004428,1560.4,1560.1,10.09547382]
[1744364992498,6.40943,1560.2,1560.1,0.05]
[1744364992699,9.18431228,1560.2,1560.1,0.05]
[1744364999298,12.18431228,1560.2,1560.1,0.05]
[1744365000738,1.98668228,1560.2,1560.1,0.05]
[1744365001033,6.47309428,1560.3,1560.1,0.05]
[1744365001237,6.40943,1560.2,1560.1,0.05]
[1744365001740,7.21443,1560.2,1560.1,0.05]
[1744365003224,7.27831428,1560.2,1560.1,0.05]
[1744365003526,9.28798871,1560.2,1560.1,0.05]
[1744365005753,0.7642,1560.1,1559.7,0.4019513]
[1744365005919,10.17527,1559.8,1559.7,0.4019513]
[1744365006117,10.23915428,1559.8,1559.7,0.4019513]
[1744365006431,11.90415571,1559.8,1559.7,0.4019513]
[1744365007009,11.13995571,1559.8,1559.7,0.4019513]
[1744365007406,3.0,1559.8,1559.7,0.4019513]
[1744365007632,6.41086,1559.9,1559.7,0.4019513]
[1744365007835,6.47474428,1559.9,1559.7,0.4019513]
[1744365008002,12.88569428,1559.9,1559.7,0.4019513]
[1744365008202,6.41107,1559.8,1559.7,0.4019513]
[1744365008441,7.69965043,1559.8,1559.7,0.4019513]
[1744365009154,2.00967443,1560.2,1559.9,6.41052]
[1744365009351,0.06388428,1560.3,1560.0,0.8108]
[1744365009530,13.67029428,1560.5,1560.1,6.40971]
[1744365009722,14.97343943,1560.5,1560.1,6.40971]
[1744365009916,14.97343943,1560.5,1560.0,10.85671382]
[1744365009917,6.40866,1560.4,1560.0,10.85671382]
[1744365010125,6.40786,1560.6,1560.0,4.44652382]
[1744365010335,0.06388428,1560.5,1560.3,0.7539]
[1744365010643,0.06388428,1560.6,1560.3,0.7539]
[1744365010822,6.4089,1560.4,1560.1,0.52325687]
[1744365011144,0.06388428,1560.3,1560.1,6.93303687]
[1744365011354,3.06388428,1560.5,1560.2,12.81846]
[1744365011517,3.06388428,1560.5,1560.0,7.3859]
[1744365011518,0.06388428,1560.5,1560.3,6.40888]
[1744365011851,6.47170428,1560.6,1560.3,7.19038]
[1744365012152,3.0,1560.3,1560.0,20.20989]
[1744365012945,3.0,1560.3,1560.0,13.79967]
[1744365013149,6.40786,1560.6,1560.2,6.40926]
[1744365013447,6.40786,1560.6,1560.3,7.17876]
[1744365013835,6.47174428,1560.6,1560.3,13.58764]
[1744365014013,6.47174428,1560.6,1560.3,7.17876]
[1744365014217,6.40832,1560.5,1560.3,0.7701]
[1744365014550,6.40832,1560.5,1560.2,13.62684]
[1744365014748,6.47220428,1560.5,1560.1,12.81948]
[1744365014951,6.40884,1560.4,1560.0,20.26055]
[1744365015115,0.06388428,1560.5,1560.1,0.61409271]
[1744365015451,0.06388428,1560.5,1560.2,12.81866]
[1744365016037,0.06388428,1560.5,1560.2,6.40931]
[1744365016238,1.36750443,1560.6,1560.3,7.21687]
[1744365016458,7.83917871,1560.6,1560.3,7.21687]
[1744365017175,7.83917871,1560.6,1560.3,0.8082]
[1744365017482,6.40899,1560.4,1560.1,0.8082]
[1744365017776,0.06388428,1560.4,1560.1,7.21789]
[1744365018076,0.06388428,1560.4,1560.1,13.62758]
[1744365018374,0.06388428,1560.4,1560.2,0.55]
[1744365018579,7.25608215,1560.5,1560.2,6.95921]
[1744365019153,0.72560822,1560.4,1560.1,7.21796]
[1744365019392,12.88149428,1560.4,1560.1,0.8082]
[1744365019681,6.40906,1560.3,1560.0,13.04211]
[1744365020185,6.47294428,1560.3,1560.0,13.04211]
[1744365020934,6.40965,1560.2,1560.0,6.632]
[1744365021182,7.22861,1560.6,1560.1,3.63572382]
[1744365021338,0.06388428,1560.5,1560.3,6.40885]
[1744365021775,8.05556043,1560.8,1560.4,0.55]
[1744365022085,6.40813,1560.6,1560.2,7.1894]
[1744365022245,6.47220428,1560.5,1560.2,7.1894]
[1744365022441,0.87988428,1560.5,1560.0,13.81132]
[1744365022775,0.87988428,1560.5,1560.1,6.40966]
[1744365022776,6.40898,1560.4,1560.1,6.40966]
[1744365022941,7.22424,1560.5,1560.2,0.55]
[1744365023240,7.22424,1560.5,1560.2,6.95929]
[1744365023460,6.47170428,1560.6,1560.3,6.4089]
[1744365023693,8.14161471,1560.6,1560.3,6.4089]
[1744365023895,14.54957471,1560.6,1560.3,6.4089]
[1744365024065,6.40826,1560.5,1560.2,6.95932]
[1744365024263,6.40826,1560.5,1560.2,13.36863]
[1744365024464,14.48591043,1560.6,1560.2,13.36863]
[1744365024979,14.26532104,1560.5,1560.2,0.55]
[1744365025179,7.23982428,1560.4,1560.0,7.17925]
[1744365025582,6.40996,1560.1,1559.7,6.8134213]
[1744365025765,6.40996,1560.1,1559.8,6.41095]
[1744365025766,6.47384428,1560.1,1559.8,6.41095]
[1744365026160,12.88398428,1560.1,1559.8,6.41095]
[1744365026362,6.41029,1560.0,1559.8,0.55]
[1744365026999,6.41029,1560.0,1559.7,10.44906512]
[1744365027000,6.47459428,1559.9,1559.7,0.4019513]
[1744365027292,6.47459428,1559.9,1559.7,0.9519513]
[1744365027460,6.47459428,1559.9,1559.7,0.4019513]
[1744365027882,6.47459428,1559.9,1559.7,0.9519513]
[1744365028260,7.66606255,1559.9,1559.7,0.4019513]
[1744365029676,6.41107,1559.8,1559.7,0.4019513]
[1744365030073,0.06388428,1559.8,1559.7,0.4019513]
[1744365030330,0.06388428,1560.0,1559.7,1.2291513]
[1744365030611,6.47430428,1560.0,1559.7,1.2291513]
[1744365030769,7.22563,1560.1,1559.8,0.55]
[1744365030976,13.69967428,1560.1,1559.8,0.55]
[1744365031298,6.41028,1560.0,1559.8,0.55]
[1744365031495,0.06388428,1559.9,1559.7,0.4019513]
[1744365031704,6.41107,1559.8,1559.7,0.4019513]
[1744365032010,8.53253343,1559.8,1559.7,0.4019513]
[1744365032172,6.4103,1560.0,1559.7,0.4019513]
[1744365032373,6.4103,1560.0,1559.7,7.6312513]
[1744365032613,3.0,1560.0,1559.7,14.0425613]
[1744365032777,9.41026,1560.0,1559.7,1.2199513]
[1744365033107,0.06388428,1559.9,1559.7,6.8134313]
[1744365033305,0.79357371,1559.9,1559.7,6.8134313]
[1744365033506,0.79357371,1559.9,1559.7,0.4019513]
[1744365033709,13.64346,1560.0,1559.7,0.4019513]
[1744365033710,7.23301,1560.0,1559.7,7.6241213]
[1744365034014,7.29689428,1560.0,1559.7,7.6241213]
[1744365034505,13.70736428,1560.0,1559.7,7.6241213]
[1744365034711,7.23301,1560.0,1559.7,7.6241213]
[1744365034880,7.29689428,1560.0,1559.7,7.6241213]
[1744365035812,0.06388428,1560.0,1559.7,7.6240013]
[1744365036008,6.47427428,1560.0,1559.8,0.30075162]
[1744365036307,7.76269371,1560.0,1559.8,0.30075162]
[1744365036508,1.28841943,1560.0,1559.8,0.30075162]
[1744365036811,0.06388428,1560.0,1559.8,0.30075162]
[1744365037013,6.47419428,1560.0,1559.8,0.30075162]
[1744365037213,6.41031,1560.0,1559.8,0.30075162]
[1744365038195,12.82082,1560.0,1559.8,0.30075162]
[1744365039107,6.41066,1559.9,1559.8,0.30075162]
[1744365040216,7.75664128,1559.9,1559.8,0.30075162]
[1744365040721,7.692757,1559.9,1559.8,0.30075162]
[1744365040918,6.47454428,1559.9,1559.8,0.30075162]
[1744365041310,6.41066,1559.9,1559.8,0.30075162]
[1744365041608,10.20486,1559.9,1559.8,0.30075162]
[1744365041786,6.41107,1559.8,1559.7,0.4019513]
[1744365042136,6.47495428,1559.8,1559.7,0.67770865]
[1744365042288,8.78402171,1559.8,1559.7,0.67770865]
[1744365045042,9.25903997,1559.8,1559.7,0.67770865]
[1744365045641,15.82157,1559.9,1559.7,1.22770865]
[1744365046041,12.82157,1559.9,1559.7,1.22770865]
[1744365046241,6.41107,1559.8,1559.7,0.67770865]
[1744365046444,6.47495428,1559.8,1559.7,0.67770865]
[1744365047150,7.23595428,1559.8,1559.7,0.67770865]
[1744365047332,9.24170171,1559.8,1559.7,0.67770865]
[1744365047818,12.24170171,1559.8,1559.7,0.67770865]
[1744365048228,12.73426872,1559.8,1559.7,0.67770865]
[1744365048545,12.72946872,1559.8,1559.7,0.67770865]
[1744365049541,12.72946872,1559.8,1559.7,0.4019513]
[1744365050041,12.72946872,1559.8,1559.7,0.67770865]
[1744365050436,12.72946872,1559.8,1559.7,0.4019513]
[1744365050806,12.72946872,1559.8,1559.7,0.67758124]
[1744365057185,0.06388428,1559.8,1559.7,0.67758124]
[1744365057353,6.47454428,1559.9,1559.7,0.67758124]
[1744365057554,12.88549428,1559.9,1559.7,0.67758124]
[1744365057867,6.41107,1559.8,1559.7,0.67758124]
[1744365059249,6.47454428,1559.9,1559.7,0.67758124]
[1744365059462,0.64745443,1559.8,1559.7,0.67758124]
[1744365059870,7.12240871,1559.8,1559.7,0.67758124]
[1744365060390,0.71133871,1559.8,1559.7,0.67758124]
[1744365060563,12.88546428,1559.9,1559.7,0.67758124]
[1744365063099,3.0,1560.0,1559.8,0.7735]
[1744365063254,0.06388428,1560.0,1559.8,7.18452]
[1744365063450,0.06388428,1560.1,1559.9,6.68600887]
[1744365064356,0.06388428,1560.1,1559.9,6.68592887]
[1744365064960,0.06388428,1560.1,1559.9,0.27534887]
[1744365065294,6.47376428,1560.1,1559.9,0.27534887]
[1744365066199,7.76210271,1560.1,1559.9,0.27534887]
[1744365067374,6.47376428,1560.1,1559.9,0.27534887]
[1744365067710,12.88378428,1560.1,1559.9,0.27534887]
[1744365068005,6.47376428,1560.1,1559.9,0.27534887]
[1744365070234,0.06388428,1560.2,1559.9,6.68588887]
[1744365070436,0.06388428,1560.2,1560.1,0.7617]
[1744365070607,0.06388428,1560.2,1560.1,1.03407359]
[1744365070817,6.47299428,1560.3,1560.1,0.27237359]
[1744365071144,7.05672943,1560.2,1560.0,0.8256]
[1744365071342,6.40943,1560.2,1560.0,0.8256]
[1744365071953,0.06388428,1560.3,1560.1,0.55]
[1744365072144,3.0,1560.3,1560.1,6.95967]
[1744365072638,6.47258428,1560.4,1560.1,13.36937]
[1744365072846,0.06388428,1560.4,1560.2,6.40929]
[1744365073524,0.06388428,1560.4,1560.3,0.7809]
[1744365073725,7.85150043,1560.8,1560.4,6.4084]
[1744365074050,7.85150043,1560.8,1560.3,1.3309]
[1744365074051,0.06388428,1560.7,1560.3,0.7809]
[1744365074220,6.40861,1560.4,1560.2,6.628]
[1744365074423,6.47249428,1560.4,1560.2,6.628]
[1744365075428,12.8158,1560.6,1560.2,19.44666]
[1744365075635,0.06388428,1560.5,1560.3,6.40899]
[1744365076551,6.47175428,1560.6,1560.3,6.40899]
[1744365078252,12.87973428,1560.6,1560.3,6.40899]
[1744365078438,6.40822,1560.5,1560.3,0.55]
[1744365079928,0.06388428,1560.4,1560.2,6.628]
[1744365080231,12.8167,1560.5,1560.2,6.628]
[1744365080431,0.06388428,1560.4,1560.2,6.628]
[1744365080654,0.84798428,1560.4,1560.2,6.628]
[1744365080860,0.84798428,1560.4,1560.3,0.24299943]
[1744365083028,0.84798428,1560.4,1560.1,13.61337]
[1744365083233,6.40822,1560.5,1560.2,7.20299975]
[1744365083531,12.88048428,1560.5,1560.2,0.79366975]
[1744365083956,12.88048428,1560.5,1560.2,0.24366975]
[1744365083957,12.8175,1560.4,1560.2,0.24366975]
[1744365084149,12.8175,1560.4,1560.1,7.20363]
[1744365084352,12.88138428,1560.4,1560.1,7.20363]
[1744365084668,7.23052,1560.3,1560.2,0.24341519]
[1744365085159,13.70363428,1560.3,1559.9,20.2306]
[1744365085369,13.63975,1560.3,1559.9,20.2306]
[1744365085539,0.06388428,1560.2,1559.9,20.2306]
[1744365085745,0.06388428,1560.2,1560.0,0.24475605]
[1744365086344,13.63975,1560.3,1560.0,0.24475605]
[1744365086742,0.06388428,1560.2,1560.0,0.24475605]
[1744365087284,6.40984,1560.1,1560.0,0.24475605]
[1744365087765,6.47372428,1560.1,1560.0,0.24475605]
[1744365087962,6.47372428,1560.1,1559.8,7.19987]
[1744365088467,6.41025,1560.0,1559.9,0.2454266]
[1744365088682,10.17855,1560.0,1559.9,0.2454266]
[1744365088872,6.41082,1559.9,1559.7,0.4019513]
[1744365089061,6.47470428,1559.9,1559.7,0.4019513]
[1744365089961,12.88560428,1559.9,1559.7,0.4019513]
[1744365090955,6.41107,1559.8,1559.7,0.4019513]
[1744365094986,6.47470428,1559.9,1559.7,0.4019513]
[1744365095168,12.88558428,1559.9,1559.7,0.4019513]
[1744365095367,3.0,1560.1,1559.8,7.22177]
[1744365095758,9.47375428,1560.1,1559.9,0.24693152]
[1744365096187,6.40987,1560.1,1559.9,0.24693152]
[1744365096376,12.88314428,1560.2,1559.9,0.24693152]
[1744365097658,6.47337428,1560.2,1559.9,6.65757152]
[1744365097858,12.88303428,1560.2,1559.9,6.65757152]
[1744365098060,6.40985,1560.1,1559.9,0.24693152]
[1744365098359,6.47413428,1560.0,1559.9,0.24693152]
[1744365098584,6.41093,1559.9,1559.7,7.5799513]
[1744365098784,6.41093,1559.9,1559.8,0.24760217]
[1744365099401,0.75,1559.1,1558.8,7.53777345]
[1744365099577,13.05049382,1558.9,1558.8,7.53777345]
[1744365099783,10.16519,1558.8,1558.7,9.43e-06]
[1744365100024,9.41642,1558.5,1558.4,10.3644385]
[1744365100298,11.06356428,1558.5,1558.4,10.3144385]
[1744365100628,11.82836428,1558.5,1558.4,10.3144385]
[1744365100786,12.31242598,1558.5,1558.4,10.3144385]
[1744365101177,12.67034839,1558.5,1558.4,8.5e-06]
[1744365101624,9.41683,1558.4,1558.3,9.52e-06]
[1744365101823,15.26127166,1558.4,1558.3,9.52e-06]
[1744365102027,15.61919407,1558.4,1558.3,9.52e-06]
[1744365102345,6.41848,1558.0,1557.9,8.59e-06]
[1744365102615,13.1180881,1558.0,1557.9,8.59e-06]
[1744365102914,9.41848,1558.0,1557.9,8.59e-06]
[1744365103112,15.4519191,1558.0,1557.9,8.59e-06]
[1744365103313,11.752311,1558.0,1557.9,8.59e-06]
[1744365103514,11.81619528,1558.0,1557.9,8.59e-06]
[1744365103751,6.4193,1557.8,1557.7,0.55]
[1744365103933,8.06701928,1557.8,1557.7,0.55]
[1744365104951,0.06388428,1557.8,1557.7,0.55]
[1744365105253,3.06388428,1557.9,1557.7,0.55]
[1744365106050,6.4193,1557.8,1557.7,0.55]
[1744365106354,9.4193,1557.8,1557.7,0.55]
[1744365106647,8.62571784,1558.4,1557.9,6.41886]
[1744365106815,6.41741,1558.3,1558.0,1.87950634]
[1744365107015,12.83502,1558.3,1558.1,0.21354717]
[1744365107233,12.83502,1558.3,1557.8,6.96926]
[1744365107431,6.41741,1558.3,1557.9,0.22399269]
[1744365107617,12.83495,1558.3,1557.8,13.72309]
[1744365107813,6.41768,1558.2,1557.9,0.22667146]
[1744365108052,1.283495,1558.3,1557.9,6.41866]
[1744365108347,4.283495,1558.3,1558.0,0.22638163]
[1744365108555,4.283495,1558.3,1558.0,6.64471163]
[1744365108732,3.0,1558.3,1558.0,6.64471163]
[1744365109050,3.0,1558.3,1558.0,0.22638163]
[1744365109051,6.41781,1558.2,1558.0,0.22638163]
[1744365109267,7.78561873,1558.3,1558.0,0.22638163]
[1744365109421,6.41784,1558.2,1558.0,0.22638163]
[1744365109752,6.4188,1558.0,1557.7,1.3699]
[1744365109936,6.4181,1558.1,1557.8,6.754]
[1744365110117,7.05991,1558.1,1557.8,6.9625618]
[1744365110317,7.78561873,1558.3,1557.9,6.41869]
[1744365110538,7.78561873,1558.3,1558.0,6.41839]
[1744365110743,7.78561873,1558.3,1558.1,6.41805]
[1744365110947,7.78561873,1558.3,1558.0,6.62586194]
[1744365111143,7.78561873,1558.3,1558.2,0.20599979]
[1744365111344,7.78561873,1558.3,1558.1,0.20679956]
[1744365111553,7.78561873,1558.3,1558.2,0.20612728]
[1744365111722,3.0,1558.3,1558.2,0.20612728]
[1744365111922,3.0,1558.3,1558.0,6.41839]
[1744365112247,3.0,1558.3,1558.1,0.20679956]
[1744365112456,3.0,1558.3,1558.0,12.83658]
[1744365112655,3.0,1558.3,1558.1,6.62484956]
[1744365112948,3.0,1558.3,1558.1,0.20679956]
[1744365113147,13.63277,1558.7,1558.2,6.41752]
[1744365113353,0.8014,1558.7,1558.3,6.41718]
[1744365113552,1.20022787,1558.7,1558.4,6.41683]
[1744365113726,1.20022787,1558.7,1558.3,6.62109546]
[1744365113921,1.20022787,1558.7,1558.5,0.20245405]
[1744365114129,4.20022787,1558.7,1558.4,0.20242502]
[1744365114454,4.20022787,1558.7,1558.5,0.20022427]
[1744365114617,4.20022787,1558.7,1558.3,12.83425]
[1744365114818,4.20022787,1558.7,1558.4,0.1828592]
[1744365115017,0.42002279,1558.6,1558.3,6.41708]
[1744365115255,0.42002279,1558.6,1558.4,0.1828592]
[1744365115456,0.42002279,1558.6,1558.3,6.41708]
[1744365115768,4.20022787,1558.7,1558.3,0.55]
[1744365115769,3.0,1558.7,1558.3,0.55]
[1744365115941,3.0,1558.7,1558.4,6.60004879]
[1744365116325,3.0,1558.8,1558.4,0.18336879]
[1744365116565,1.12246151,1559.2,1558.9,6.41462]
[1744365116778,1.12246151,1559.2,1559.0,12.82853]
[1744365116779,0.32646151,1559.2,1559.0,12.82853]
[1744365117078,4.78561873,1559.6,1559.0,1.51763353]
[1744365117079,5.54241873,1559.6,1559.0,1.51763353]
[1744365117254,4.78561873,1559.6,1559.2,6.41347]
[1744365117561,4.78561873,1559.6,1559.4,6.41243]
[1744365118051,4.78561873,1559.6,1559.5,0.17477765]
[1744365118556,4.78561873,1559.6,1559.5,7.34668765]
[1744365119860,6.41029,1560.0,1559.6,6.41179]
[1744365120027,7.769958,1560.0,1559.7,0.15157265]
[1744365120537,12.81831,1560.3,1559.8,6.41094]
[1744365120739,6.40957,1560.2,1559.7,12.97426265]
[1744365120957,3.0,1560.1,1559.9,0.15035884]
[1744365121159,3.0,1560.1,1559.8,6.56164767]
[1744365121364,9.40984,1560.1,1560.0,0.14930686]
[1744365121549,9.40984,1560.1,1559.6,19.57653]
[1744365121550,10.991781,1560.1,1559.9,0.15010443]
[1744365121746,10.991781,1560.1,1559.6,19.57653]
[1744365122064,10.991781,1560.1,1559.6,6.4117]
[1744365122262,4.581941,1560.1,1559.8,6.41092]
[1744365122435,6.40904,1560.3,1559.9,6.56087884]
[1744365122635,3.0,1560.2,1559.9,6.56087884]
[1744365122834,6.40904,1560.3,1559.9,6.56087884]
[1744365123052,6.40969,1560.2,1559.9,0.15035884]
[1744365123338,6.40969,1560.2,1559.7,12.82271]
[1744365123553,0.640969,1560.1,1560.0,0.14943405]
[1744365123781,0.640969,1560.1,1559.7,12.82271]
[1744365123982,0.640969,1560.1,1560.0,0.14943405]
[1744365124154,0.640969,1560.1,1559.7,12.82271]
[1744365124684,0.640969,1560.1,1559.8,0.1509021]
[1744365126880,7.050859,1560.1,1559.8,0.1509021]
[1744365127083,0.7050859,1560.0,1559.8,0.1509021]
[1744365127974,0.7050859,1560.0,1559.8,6.5619421]
[1744365128268,0.640969,1560.1,1559.8,6.5619421]
[1744365129279,6.4105,1560.0,1559.8,0.1509021]
[1744365129452,6.4105,1560.0,1559.6,6.41182]
[1744365129777,6.4105,1560.0,1559.7,0.13828515]
[1744365129982,7.23323,1560.0,1559.7,0.13828515]
[1744365130186,0.723323,1559.9,1559.7,0.13828515]
[1744365131152,0.640969,1560.1,1559.7,6.54957515]
[1744365131351,3.0,1560.2,1559.9,12.8206]
[1744365131570,3.0,1560.2,1559.9,6.41028]
[1744365131882,3.0,1560.2,1560.0,0.13534973]
[1744365133689,9.40959,1560.2,1560.0,0.13534973]
[1744365133986,9.40959,1560.2,1559.8,7.19631]
[1744365133987,3.0,1560.2,1559.8,6.96510734]
[1744365134183,10.35034,1560.2,1560.1,0.13467942]
[1744365134356,10.35034,1560.2,1559.8,13.37627734]
[1744365134553,3.94091,1560.2,1560.1,0.13467942]
[1744365134753,3.94091,1560.2,1559.9,6.41053]
[1744365134955,0.7531,1560.4,1560.1,0.13467942]
[1744365135162,0.7531,1560.4,1559.8,6.96521734]
[1744365135163,7.16081,1560.6,1560.0,0.13534973]
[1744365135367,7.16081,1560.6,1560.3,6.40887]
[1744365135754,3.0,1560.5,1560.4,0.13445065]
[1744365136254,3.0,1560.5,1560.4,0.13406925]
[1744365136452,3.0,1560.5,1560.3,6.40887]
[1744365136653,3.0,1560.5,1560.4,0.13375126]
[1744365136885,3.0,1560.5,1560.3,6.40887]
[1744365137048,3.0,1560.5,1560.4,0.13375126]
[1744365137249,3.0,1560.5,1560.3,13.60046]
[1744365137453,3.0,1560.5,1560.4,0.13375126]
[1744365137654,16.757561,1560.5,1560.1,6.95967]
[1744365137854,16.757561,1560.5,1560.2,0.13509157]
[1744365138097,10.348981,1560.5,1560.1,13.36937]
[1744365138397,10.348981,1560.5,1560.3,0.13442137]
[1744365138698,10.348981,1560.5,1560.4,0.13375126]
[1744365139083,16.757401,1560.5,1560.1,13.36937]
[1744365139282,16.757401,1560.5,1560.2,0.13509157]
[1744365139496,16.757401,1560.5,1560.1,13.36937]
[1744365139690,16.757401,1560.5,1560.3,0.13442137]
[1744365139999,16.757401,1560.5,1560.1,13.36937]
[1744365140194,16.757401,1560.5,1560.4,0.13375126]
[1744365140659,16.757401,1560.5,1560.1,13.36937]
[1744365140860,16.757401,1560.5,1560.2,0.13509157]
[1744365141093,13.54259312,1560.4,1560.1,6.40967]
[1744365141307,7.13376312,1560.4,1560.3,0.13442137]
[1744365141515,7.13376312,1560.4,1560.2,0.13509157]
[1744365141681,7.18138,1560.7,1560.4,6.40857]
[1744365141882,6.40748,1560.7,1560.5,0.13269972]
[1744365142090,12.81418,1560.8,1560.5,0.13269972]
[1744365142286,3.0,1560.7,1560.5,0.13269972]
[1744365143011,17.396628,1560.7,1560.5,0.13269972]
[1744365143174,10.988968,1560.7,1560.5,0.13269972]
[1744365144429,3.0,1560.7,1560.5,6.54087972]
[1744365145011,3.0,1560.7,1560.5,0.13269972]
[1744365146333,6.40703,1560.8,1560.5,6.54086972]
[1744365147323,3.0,1560.8,1560.6,6.40759]
[1744365147494,3.0,1560.8,1560.5,12.94895972]
[1744365148119,3.0,1560.8,1560.6,6.40778]
[1744365148323,6.40656,1560.9,1560.6,6.40778]
[1744365148533,6.40656,1560.9,1560.7,0.12883]
[1744365149331,14.394721,1560.9,1560.7,0.12883]
[1744365149624,0.35810486,1560.8,1560.5,12.81614]
[1744365149825,0.35810486,1560.8,1560.5,6.40807]
[1744365150005,0.35810486,1560.8,1560.6,6.40774]
[1744365150323,0.35810486,1560.8,1560.6,6.40764]
[1744365150510,0.35810486,1560.8,1560.7,6.40738]
[1744365150825,15.81256,1561.0,1560.7,6.40738]
[1744365151123,1.581256,1560.9,1560.7,6.40738]
[1744365151321,1.581256,1560.9,1560.7,6.4073]
[1744365151521,3.0,1561.0,1560.7,7.19]
[1744365151827,3.0,1561.0,1560.8,6.40697]
[1744365152693,3.0,1561.0,1560.7,13.59724]
[1744365154498,3.0,1561.0,1560.7,13.59718]
[1744365155026,11.065929,1561.0,1560.6,6.40775]
[1744365155396,7.2204,1560.8,1560.4,6.40846]
[1744365155617,7.2204,1560.8,1560.4,12.81692]
[1744365156629,6.40771,1560.7,1560.3,20.49959]
[1744365156800,7.770492,1560.7,1560.4,0.55]
[1744365156992,1.362782,1560.7,1560.4,6.95851]
[1744365157195,1.362782,1560.7,1560.4,13.36696]
[1744365158196,1.362782,1560.7,1560.4,6.95845]
[1744365158396,1.362782,1560.7,1560.4,13.36691]
[1744365159942,1.362782,1560.7,1560.4,13.36692]
[1744365160106,1.362782,1560.7,1560.4,6.95845]
[1744365160303,1.362782,1560.7,1560.4,13.36691]
[1744365160704,1.362782,1560.7,1560.5,6.40817]
[1744365160923,3.8131,1560.8,1560.5,6.40817]
[1744365161724,0.35853764,1560.7,1560.5,6.40805]
[1744365162002,0.35853764,1560.7,1560.6,6.95779]
[1744365162200,0.35853764,1560.7,1560.6,9.41559634]
[1744365162452,3.0,1561.0,1560.7,6.95721]
[1744365162735,4.020305,1561.0,1560.7,13.36444]
[1744365162932,4.020305,1561.0,1560.7,6.95721]
[1744365163133,0.35859869,1560.9,1560.7,13.36447]
[1744365163732,0.35859869,1560.9,1560.7,6.95721]
[1744365164035,4.020305,1561.0,1560.7,6.95721]
[1744365164229,4.020305,1561.0,1560.7,13.36444]
[1744365165736,3.0,1561.0,1560.7,13.36444]
[1744365166249,0.35906678,1560.9,1560.7,13.36444]
[1744365166648,0.35906678,1560.9,1560.8,6.95697]
[1744365166837,0.35906678,1560.9,1560.8,7.73967]
[1744365167154,4.78561873,1561.2,1561.0,12.81202]
[1744365167554,4.78561873,1561.2,1561.1,14.47743]
[1744365168355,7.16537,1561.9,1561.2,6.40532]
[1744365168356,4.78561873,1561.3,1561.2,6.40532]
[1744365168562,4.78561873,1561.3,1561.2,6.95532]
[1744365168848,4.78561873,1561.3,1561.1,7.18843]
[1744365169051,4.78561873,1561.3,1561.1,7.18837]
[1744365169255,5.9046486,1561.3,1561.0,20.10128]
[1744365169449,5.9046486,1561.3,1561.0,13.69514]
[1744365169753,6.7053486,1561.3,1561.0,6.95614]
[1744365170147,4.78561873,1561.3,1561.2,6.40532]
[1744365170542,4.78561873,1561.3,1561.2,6.95532]
[1744365171459,4.78561873,1561.3,1561.2,0.55]
[1744365171962,4.78561873,1561.3,1561.2,6.95532]
[1744365172324,4.78561873,1561.3,1561.2,0.55]
[1744365172751,12.80857,1561.5,1561.2,0.55]
[1744365172960,0.8013,1561.3,1561.0,7.16031]
[1744365173325,0.8013,1561.3,1561.0,13.56632]
[1744365173526,0.8013,1561.3,1561.0,6.40601]